fUSD/lending_fUSD_20250402
["ID","MTS","AMOUNT","RATE_DAILY","PERIOD"]
[357017736,1743579072342,-10000.0,0.0006933,120]
[357017737,1743579072354,-5820.5289,0.0006933,120]
[357017738,1743579072365,-200.0,0.00069345,119]
[357017739,1743579072375,-200.0,0.00069345,119]
[357017740,1743579072385,-200.0,0.0006935,119]
[357017741,1743579072395,-1164.3,0.00069357,30]
[357017742,1743579072405,-200.0,0.0006937,119]
[357017743,1743579072415,-200.0,0.00069384,119]
[357017744,1743579072426,-19526.30082154,0.0006939,119]
[357017745,1743579072436,-232.08238789,0.00069401,119]
[357017746,1743579072446,-232.08238789,0.00069401,119]
[357017747,1743579072456,-200.0,0.00069404,119]
[357017748,1743579072467,-19526.30082154,0.00069407,119]
[357017749,1743579072477,-200.0,0.00069414,119]
[357017750,1743579072487,-232.08238789,0.00069424,119]
[357017751,1743579072498,-200.0,0.0006943,119]
[357017752,1743579072508,-270.25015916,0.00069437,119]
[357017753,1743579072518,-84905.19514258,0.00069445,119]
[357017754,1743579072527,-84905.19514258,0.00069446,119]
[357017755,1743579072537,-270.25015916,0.00069461,119]
[357017756,1743579072550,-200.0,0.00069465,119]
[357017757,1743579072560,-200.0,0.00069474,119]
[357017758,1743579072570,-84905.19514258,0.00069474,119]
[357017759,1743579072580,-200.0,0.00069481,119]
[357017760,1743579072590,-200.0,0.00069481,119]
[357017761,1743579072603,-19526.30082154,0.00069487,119]
[357017762,1743579072614,-84905.19514258,0.00069503,119]
[357017763,1743579072626,-200.0,0.00069513,119]
[357017764,1743579072636,-1044.56,0.00069514,30]
[357017765,1743579072647,-200.0,0.00069516,119]
[357017766,1743579072658,-200.0,0.00069523,119]
[357017767,1743579072667,-200.0,0.00069527,119]
[357017768,1743579072677,-200.0,0.00069529,119]
[357017769,1743579072687,-200.0,0.00069534,119]
[357017770,1743579072696,-200.0,0.0006954,119]
[357017771,1743579072706,-200.0,0.00069544,119]
[357017772,1743579072718,-5000.0,0.00069544,30]
[357017773,1743579072794,-200.0,0.00069546,119]
[357017774,1743579072810,-200.0,0.00069546,119]
[357017775,1743579072820,-84905.19514258,0.0006955,119]
[357017776,1743579072829,-200.0,0.00069551,119]
[357017777,1743579072839,-270.25015916,0.00069553,119]
[357017778,1743579072852,-200.0,0.00069555,119]
[357017779,1743579072862,-19526.30082154,0.00069556,119]
[357017780,1743579072872,-200.0,0.00069569,119]
[357017781,1743579072881,-200.0,0.00069571,119]
[357017782,1743579072892,-200.0,0.00069573,119]
[357017783,1743579072901,-200.0,0.00069577,119]
[357017784,1743579072913,-232.08238789,0.00069592,119]
[357017785,1743579072923,-387.89,0.00069596,30]
[357017786,1743579072933,-200.0,0.00069609,119]
[357017787,1743579072943,-200.0,0.00069612,119]
[357017788,1743579072954,-84905.19514258,0.00069613,119]
[357017789,1743579072965,-19526.30082154,0.00069615,119]
[357017790,1743579072976,-200.0,0.00069616,119]
[357017791,1743579072986,-200.0,0.00069619,119]
[357017792,1743579072996,-200.0,0.00069619,119]
[357017793,1743579073006,-270.25015916,0.00069625,119]
[357017794,1743579073016,-200.0,0.00069632,119]
[357017795,1743579073026,-200.0,0.00069634,119]
[357017796,1743579073035,-19526.30082154,0.00069639,119]
[357017797,1743579073045,-3000.0,0.0006965,40]
[357017798,1743579073055,-3000.0,0.0006965,35]
[357017799,1743579073064,-19526.30082154,0.00069654,119]
[357017800,1743579073074,-270.25015916,0.00069659,119]
[357017801,1743579073084,-200.0,0.00069666,119]
[357017802,1743579073097,-200.0,0.00069668,119]
[357017803,1743579073108,-200.0,0.00069684,119]
[357017804,1743579073118,-200.0,0.00069685,119]
[357017805,1743579073127,-200.0,0.00069691,119]
[357017806,1743579073138,-361.08,0.000697,30]
[357017807,1743579073147,-20407.54,0.00069789,30]
[357017808,1743579073158,-2500.0,0.000698,120]
[357017809,1743579073169,-732.70901063,0.000699,90]
[357017810,1743579073179,-86023.29467393,0.000699,120]
[357017811,1743579073189,-47046.27007159,0.0006998,120]
[357017812,1743579073199,-8000.0,0.0006999,7]
[357017813,1743579073209,-1000.0,0.00069999,120]
[357017814,1743579073219,-50000.0,0.0007,70]
[357017815,1743579073229,-281.76256898,0.0007,120]
[357017816,1743579073239,-250.0,0.0007,120]
[357017817,1743579073249,-300.0,0.0007,120]
[357017818,1743579073259,-200.0,0.0007,120]
[357017819,1743579073269,-670.0,0.0007,120]
[357017820,1743579073278,-19282.18288132,0.0007,120]
[357017821,1743579073288,-41930.58088736,0.0007015,2]
[357017822,1743579073298,-1302.27,0.000705,60]
[357017823,1743579073308,-63000.0,0.0007099,120]
[357017824,1743579073318,-1350.0,0.00071,2]
[357017825,1743579073328,-239.48971568,0.00072,30]
[357017826,1743579073338,-300.0,0.00072,120]
[357017827,1743579073353,-1767.3671967,0.00072,7]
[357017828,1743579073363,-2036.988575,0.00072,120]
[357017829,1743579073373,-10000.0,0.00072,2]
[357017830,1743579073384,-2000.0,0.0007244,45]
[357017831,1743579073395,-474.52238855,0.00073,120]
[357017832,1743579073406,-1400.0,0.00073,2]
[357017833,1743579073416,-163.16,0.00073223,120]
[357017834,1743579073427,-408.05,0.00073223,120]
[357017835,1743579073437,-191.56,0.00073235,120]
[357017836,1743579073447,-151.0,0.00073945,120]
[357017837,1743579073457,-500.0,0.00074,120]
[357017838,1743579073467,-158.8,0.00074051,120]
[357017839,1743579073477,-2000.0,0.00074444,35]
[357017840,1743579073486,-1000.0,0.00074999,120]
[357017841,1743579073496,-300.0,0.00075,120]
[357017842,1743579073507,-500.0,0.00075,120]
[357017843,1743579073517,-2000.0,0.00075,120]
[357017844,1743579073528,-1450.0,0.00075,2]
[357017845,1743579073538,-2000.00000099,0.000753,120]
[357017846,1743579073551,-582.8343402,0.00075534,120]
[357017847,1743579073561,-3161.0,0.0007596,35]
[357017848,1743579073571,-3066.78,0.00076,120]
[357017849,1743579073580,-330.0,0.00076,120]
[357017850,1743579073590,-2500.0,0.00076,120]
[357017851,1743579073603,-526.25225724,0.000768,120]
[357017852,1743579073613,-1302.27,0.000768,60]
[357017853,1743579073623,-1500.0,0.0007684,30]
[357017854,1743579073633,-1500.0,0.00077,2]
[357017855,1743579073643,-1403.70910513,0.00077262,15]
[357017856,1743579073652,-191.56,0.00077714,120]
[357017857,1743579073662,-1500.0,0.0007777,45]
[357017858,1743579073671,-1039.42873152,0.00078,120]
[357017859,1743579073681,-650.0,0.00078,120]
[357017860,1743579073690,-2000.0,0.00078,120]
[357017861,1743579073700,-3500.0,0.00078,120]
[357017862,1743579073710,-300.0,0.000784,120]
[357017863,1743579073719,-151.0,0.00078712,120]
[357017864,1743579073729,-750.0,0.00079,120]
[357017865,1743579073738,-163.16,0.00079019,120]
[357017866,1743579073748,-408.05,0.00079019,120]
[357017867,1743579073758,-3000.0,0.0007932,45]
[357017868,1743579073767,-8000.0,0.0007999,7]
[357017869,1743579073777,-1000.0,0.00079999,120]
[357017870,1743579073786,-195106.37444938,0.0008,2]
[357017871,1743579073796,-199.999999,0.0008,8]
[357017872,1743579073805,-500.0,0.0008,120]
[357017873,1743579073815,-500.0,0.0008,120]
[357017874,1743579073824,-250.0,0.0008,120]
[357017875,1743579073834,-20000.0,0.0008,90]
[357017876,1743579073843,-3208.77374379,0.0008,120]
[357017877,1743579073857,-465.24569974,0.0008,120]
[357017878,1743579073867,-6557.88835753,0.0008,120]
[357017879,1743579073876,-500.0,0.0008,120]
[357017880,1743579073886,-10000.0,0.0008,120]
[357017881,1743579073896,-540.15,0.0008,120]
[357017882,1743579073906,-151.0,0.0008,120]
[357017883,1743579073915,-151.0,0.0008,120]
[357017884,1743579073925,-152.85,0.0008,120]
[357017885,1743579073935,-152.85,0.0008,120]
[357017886,1743579073945,-172.835934,0.0008,120]
[357017887,1743579073955,-172.835934,0.0008,120]
[357017888,1743579073965,-330.7366013,0.000801,30]
[357017889,1743579073975,-1500.0,0.0008044,30]
[357017890,1743579073984,-2000.0,0.00081,120]
[357017891,1743579073994,-151.0,0.00081178,120]
[357017892,1743579074003,-1612.14488429,0.0008137,30]
[357017893,1743579074013,-158.8,0.00081918,120]
[357017894,1743579074095,-191.56,0.00082192,120]
[357017895,1743579074111,-378.82,0.000822,120]
[357017896,1743579074121,-2000.0,0.0008256,35]
[357017897,1743579074131,-803677.54697825,0.00082611,120]
[357017898,1743579074141,-151.0,0.00082611,120]
[357017899,1743579074151,-255.030016,0.00082611,120]
[357017900,1743579074161,-1076.11,0.00084,120]
[357017901,1743579074171,-300.0,0.00084,120]
[357017902,1743579074181,-5000.0,0.00084,120]
[357017903,1743579074192,-2000.0,0.00084,120]
[357017904,1743579074204,-163.16,0.00084816,120]
[357017905,1743579074214,-408.05,0.00084816,120]
[357017906,1743579074224,-1000.0,0.00084999,120]
[357017907,1743579074234,-500.0,0.00085,120]
[357017908,1743579074244,-677.419,0.00086175,120]
[357017909,1743579074254,-1500.0,0.0008645,30]
[357017910,1743579074264,-2301.457,0.0008657,38]
[357017911,1743579074274,-185.77511815,0.00086895,120]
[357017912,1743579074284,-2000.0,0.0008696,30]
[357017913,1743579074293,-353795.79190698,0.00086995,120]
[357017914,1743579074302,-151.0,0.00086995,120]
[357017915,1743579074312,-151.0,0.00086995,120]
[357017916,1743579074321,-152.85,0.00086995,120]
[357017917,1743579074331,-152.85,0.00086995,120]
[357017918,1743579074341,-172.835934,0.00086995,120]
[357017919,1743579074354,-172.835934,0.00086995,120]
[357017920,1743579074364,-1302.27,0.00087,60]
[357017921,1743579074373,-2500.0,0.00087,120]
[357017922,1743579074383,-3481.26915008,0.00088,120]
[357017923,1743579074393,-2000.0,0.00088,120]
[357017924,1743579074402,-300.0,0.000884,120]
[357017925,1743579074412,-151.0,0.00088411,120]
[357017926,1743579074422,-3000.0,0.0008844,45]
[357017927,1743579074432,-5000.0,0.000885,120]
[357017928,1743579074441,-50000.0,0.0008888,120]
[357017929,1743579074450,-1000.0,0.00089,30]
[357017930,1743579074460,-268.822004,0.00089,120]
[357017931,1743579074470,-204.9,0.00089,120]
[357017932,1743579074479,-1674.0,0.0008944,30]
[357017933,1743579074488,-1500.0,0.0008965,38]
[357017934,1743579074497,-158.8,0.00089785,120]
[357017935,1743579074508,-1726.78,0.0008996,103]
[357017936,1743579074518,-8000.0,0.0008999,7]
[357017937,1743579074527,-1000.0,0.00089999,120]
[357017938,1743579074537,-444.0,0.0009,120]
[357017939,1743579074550,-301.53,0.0009,2]
[357017940,1743579074559,-500.0,0.0009,120]
[357017941,1743579074568,-500.0,0.0009,120]
[357017942,1743579074577,-300.0,0.0009,120]
[357017943,1743579074587,-20000.0,0.0009,90]
[357017944,1743579074597,-1000.0,0.0009,120]
[357017945,1743579074609,-201.03,0.0009,120]
[357017946,1743579074618,-1000.0,0.0009,2]
[357017947,1743579074629,-5000.0,0.0009,120]
[357017948,1743579074638,-10079.21199382,0.0009,25]
[357017949,1743579074647,-1554.7337866,0.0009,120]
[357017950,1743579074659,-163.16,0.00090613,120]
[357017951,1743579074680,-408.05,0.00090613,120]
[357017952,1743579074698,-189.87000376,0.00091,120]
[357017953,1743579074717,-20133.9075231,0.00092,120]
[357017954,1743579074734,-2021.38311979,0.00093118,120]
[357017955,1743579074749,-1000.0,0.00093999,120]
[357017956,1743579074768,-300.0,0.00094,120]
[357017957,1743579074787,-5000.0,0.00094,120]
[357017958,1743579074805,-5000.0,0.00094089,120]
[357017959,1743579074824,-991.01,0.00094092,120]
[357017960,1743579074841,-5000.0,0.00094108,120]
[357017961,1743579074867,-3273.84,0.00094165,120]
[357017962,1743579074883,-10000.00018448,0.000942,120]
[357017963,1743579074897,-25000.0,0.00094208,120]
[357017964,1743579074915,-5000.0,0.00094235,120]
[357017965,1743579074929,-5000.0,0.0009428,120]
[357017966,1743579074945,-25000.0,0.00094309,120]
[357017967,1743579074959,-2133.07,0.00094316,120]
[357017968,1743579074972,-631.31,0.00094324,120]
[357017969,1743579074988,-208.3,0.00094355,120]
[357017970,1743579075001,-2821.26,0.00094375,120]
[357017971,1743579075016,-2500.0,0.00094435,120]
[357017972,1743579075031,-2627.84,0.00094436,120]
[357017973,1743579075045,-1500.0,0.0009444,38]
[357017974,1743579075058,-2000.0,0.00094444,45]
[357017975,1743579075073,-5000.0,0.00094467,120]
[357017976,1743579075087,-5000.0,0.00094479,120]
[357017977,1743579075104,-5000.0,0.00094576,120]
[357017978,1743579075118,-5000.0,0.00094581,120]
[357017979,1743579075132,-25000.0,0.00094616,120]
[357017980,1743579075146,-3324.24,0.00094708,120]
[357017981,1743579075161,-2487.03,0.00094709,120]
[357017982,1743579075176,-325.17,0.00094757,120]
[357017983,1743579075190,-25000.0,0.00094801,120]
[357017984,1743579075205,-4720.58,0.00094832,120]
[357017985,1743579075220,-5000.0,0.00094838,120]
[357017986,1743579075234,-800.84,0.00094842,120]
[357017987,1743579075248,-20167.96,0.00094844,120]
[357017988,1743579075265,-2149.34,0.00094857,120]
[357017989,1743579075280,-5000.0,0.00094872,120]
[357017990,1743579075294,-25000.0,0.00094946,120]
[357017991,1743579075308,-5000.0,0.00094986,120]
[357017992,1743579075323,-25000.0,0.00094999,120]
[357017993,1743579075339,-3423.7,0.00095,120]
[357017994,1743579075355,-151.0,0.00095562,120]
[357017995,1743579075370,-151.0,0.00095644,120]
[357017996,1743579075385,-163.16,0.0009641,120]
[357017997,1743579075400,-408.05,0.0009641,120]
[357017998,1743579075414,-2000.0,0.0009645,35]
[357017999,1743579075429,-2500.0,0.00097,120]
[357018000,1743579075443,-6380.97529172,0.000974,60]
[357018001,1743579075730,-500.0,0.00049589,120]
[357018002,1743579075740,-926.80776368,0.000974,60]
[357018003,1743579379738,153.99,0.00013699,2]
[357018005,1743579458567,151.0,0.0003,30]
[357018006,1743579459193,156.587,0.0003,30]
[357018007,1743579459807,162.380719,0.0003,30]
[357018008,1743579460476,168.3888056,0.0003,30]
[357018009,1743579461111,174.61919141,0.0003,30]
[357018010,1743579461741,181.08010149,0.0003,30]
[357018011,1743579462405,187.78006525,0.0003,30]
[357018012,1743579463025,194.72792766,0.0003,30]
[357018013,1743579463710,201.93286099,0.0003,30]
[357018014,1743579464338,209.40437684,0.0003,30]
[357018015,1743579464974,217.15233878,0.0003,30]
[357018016,1743579465781,225.18697532,0.0003,30]
[357018017,1743579466449,233.51889341,0.0003,30]
[357018018,1743579467199,416.84258557,0.0003,30]
[357018019,1743579724459,151.0,0.0003,30]
[357018020,1743579725115,156.587,0.0003,30]
[357018021,1743579725985,162.380719,0.0003,30]
[357018022,1743579726440,168.3888056,0.0003,30]
[357018023,1743579727143,174.61919141,0.0003,30]
[357018025,1743579727807,181.08010149,0.0003,30]
[357018026,1743579728481,187.78006525,0.0003,30]
[357018027,1743579729148,194.72792766,0.0003,30]
[357018028,1743579730373,201.93286099,0.0003,30]
[357018029,1743579731069,209.40437684,0.0003,30]
[357018030,1743579732285,217.15233878,0.0003,30]
[357018031,1743579732952,225.18697532,0.0003,30]
[357018032,1743579733642,233.51889341,0.0003,30]
[357018033,1743579734297,242.15909246,0.0003,30]
[357018034,1743579735030,251.11897888,0.0003,30]
[357018035,1743579735684,260.4103811,0.0003,30]
[357018036,1743579736331,270.0455652,0.0003,30]
[357018037,1743579736974,280.03725112,0.0003,30]
[357018038,1743579737599,290.39862941,0.0003,30]
[357018039,1743579738813,453.0,0.0003,30]
[357018040,1743579741414,500.0,0.0003,30]
[357018041,1743579742099,518.5,0.0003,30]
[357018042,1743579742747,537.6845,0.0003,30]
[357018043,1743579743460,557.5788265,0.0003,30]
[357018044,1743579744004,578.20924308,0.0003,30]
[357018045,1743579744657,599.60298507,0.0003,30]
[357018046,1743579745445,621.78829552,0.0003,30]
[357018047,1743579746090,644.79446246,0.0003,30]
[357018048,1743579746714,668.65185757,0.0003,30]
[357018049,1743579747376,693.3919763,0.0003,30]
[357018050,1743579748049,719.04747942,0.0003,30]
[357018051,1743579748689,745.65223616,0.0003,30]
[357018052,1743579749896,773.2413689,0.0003,30]
[357018053,1743579750629,801.85129955,0.0003,30]
[357018054,1743579751301,831.51979763,0.0003,30]
[357018055,1743579751921,862.28603014,0.0003,30]
[357018056,1743579752577,894.19061326,0.0003,30]
[357018057,1743579753372,927.27566595,0.0003,30]
[357018058,1743579754788,961.58486559,0.0003,30]
[357018059,1743579755495,1500.0,0.0003,30]
[357018060,1743579939125,-206.36,0.00016045,2]
[357018061,1743579939147,-150.0,0.00016131,2]
[357018062,1743579939168,-150.0,0.00017004,2]
[357018063,1743579939190,-150.0,0.00017649,2]
[357018064,1743579939217,-201.89221646,0.000191,2]
[357018065,1743579939239,-500.0,0.000192,2]
[357018066,1743579939265,-300.0,0.00022326,2]
[357018067,1743579939286,-535.27117223,0.00022327,2]
[357018068,1743579939306,-150.99,0.00022327,2]
[357018069,1743579939327,-1260.73,0.00022327,2]
[357018070,1743579939348,-260.57908108,0.00022463,2]
[357018071,1743579939368,-324.24,0.00022463,2]
[357018072,1743579939388,-999.99,0.00022463,2]
[357018073,1743579939408,-206.36,0.00022463,2]
[357018074,1743579939428,-491.0,0.00025403,2]
[357018075,1743579939452,-789.0,0.00025404,2]
[357018076,1743579939472,-1275.0,0.00025404,2]
[357018077,1743579939500,-543.0,0.00025404,2]
[357018078,1743579939523,-1434.0,0.00025404,2]
[357018079,1743579939543,-4094.0,0.00025404,2]
[357018080,1743579939563,-909.0,0.00025404,2]
[357018081,1743579939584,-151.0,0.00025404,2]
[357018082,1743579939604,-1118.0,0.00025404,2]
[357018083,1743579939625,-2041.0,0.00025404,2]
[357018084,1743579939645,-1284.0,0.00025404,2]
[357018085,1743579939666,-500.0,0.000255,2]
[357018086,1743579939686,-156.91,0.00026849,2]
[357018087,1743579939707,-305.47,0.00028178,19]
[357018088,1743579939726,-329.356,0.00028404,2]
[357018089,1743579939746,-1118.0,0.00028404,2]
[357018090,1743579939766,-2041.0,0.00028404,2]
[357018091,1743579939787,-1284.0,0.00028404,2]
[357018092,1743579939810,-1118.0,0.00031404,2]
[357018093,1743579939831,-2041.0,0.00031404,2]
[357018094,1743579939850,-1284.0,0.00031404,2]
[357018095,1743579939874,-150.0,0.000343,2]
[357018096,1743579939895,-354.469,0.00034404,2]
[357018097,1743579939916,-2041.0,0.00034404,2]
[357018098,1743579939935,-1284.0,0.00034404,2]
[357018099,1743579939957,-156.91,0.00034716,2]
[357018100,1743579939977,-300.0,0.00034761,5]
[357018101,1743579939998,-168.86,0.00035,2]
[357018102,1743579940018,-176.82,0.00036,7]
[357018103,1743579940038,-166.691,0.00036218,7]
[357018104,1743579940059,-150.0,0.00036218,7]
[357018105,1743579940080,-482.15,0.00036586,2]
[357018106,1743579940099,-1676.89355141,0.00036963,2]
[357018107,1743579940119,-600.0,0.00036973,13]
[357018108,1743579940139,-600.0,0.00036973,13]
[357018109,1743579940159,-600.0,0.00036973,13]
[357018110,1743579940179,-600.0,0.00036973,13]
[357018111,1743579940204,-600.0,0.00036973,13]
[357018112,1743579940225,-600.0,0.00036973,13]
[357018113,1743579940246,-600.0,0.00036973,13]
[357018114,1743579940272,-600.0,0.00036973,13]
[357018115,1743579940294,-189.56383816,0.00036973,13]
[357018116,1743579940314,-2041.0,0.00037404,2]
[357018117,1743579940509,-1142.498,0.00037404,2]
[357018118,1743579940532,-299.99,0.00037568,7]
[357018119,1743579940555,-181.78,0.00037842,120]
[357018120,1743579940580,-200.0,0.00037886,2]
[357018121,1743579940601,-150.13,0.00038295,2]
[357018122,1743579940622,-152.3,0.00038521,2]
[357018123,1743579940643,-150.0,0.00038645,2]
[357018124,1743579940665,-201.89221645,0.00038659,2]
[357018125,1743579940687,-4862.89809748,0.00038714,2]
[357018126,1743579952108,-573.0,0.00025404,2]
[357018127,1743579952130,-573.0,0.00028404,2]
[357018128,1743579952153,-19037.10190252,0.00038714,2]
[357018129,1743579952173,-288.284,0.00038714,7]
[357018130,1743579952195,-161.66,0.00038759,2]
[357018131,1743579952219,-200.0,0.0003878,2]
[357018132,1743579952240,-482.15,0.0003885,2]
[357018133,1743579952260,-250.0,0.00039097,2]
[357018134,1743579952280,-487.183,0.00040404,2]
[357018135,1743579952301,-154.28,0.00040669,120]
[357018136,1743579952322,-219.25895212,0.00040728,2]
[357018137,1743579952342,-171.0,0.00041,14]
[357018138,1743579952362,-1000.0,0.00041095,120]
[357018139,1743579952383,-377.67996456,0.00041095,120]
[357018140,1743579952402,-153.31,0.00041096,60]
[357018141,1743579952423,-482.15,0.00041114,2]
[357018142,1743579952444,-150.0,0.00041384,7]
[357018143,1743579952466,-2501.54,0.00042,120]
[357018144,1743579952487,-150.13,0.00042182,2]
[357018145,1743579952508,-156.91,0.00042583,2]
[357018146,1743579952528,-11412.54,0.00043026,2]
[357018147,1743579952548,-200.0,0.00043119,120]
[357018148,1743579952569,-171.0,0.00043151,90]
[357018149,1743579952588,-151.37,0.00043302,2]
[357018150,1743579952609,-482.15,0.00043378,2]
[357018151,1743579952630,-262.58,0.000437,14]
[357018152,1743579952650,-815.5,0.00044379,60]
[357018153,1743579952671,-151.0,0.00045,120]
[357018154,1743579952691,-161.66,0.00045219,2]
[357018155,1743579952714,-482.15,0.00045642,2]
[357018156,1743579952735,-150.13,0.00046069,2]
[357018157,1743579952755,-1000.0,0.00046575,120]
[357018158,1743579952777,-1000.0,0.00046817,2]
[357018159,1743579952803,-154.28,0.00046827,120]
[357018160,1743579952825,-1000.0,0.00046849,120]
[357018161,1743579952850,-1000.0,0.00047123,120]
[357018162,1743579952872,-1000.0,0.00047397,120]
[357018163,1743579952894,-1000.0,0.00047671,120]
[357018164,1743579952916,-482.15,0.00047906,2]
[357018165,1743579952939,-1000.0,0.00047945,120]
[357018166,1743579952959,-1000.0,0.00048219,120]
[357018167,1743579952981,-1000.0,0.00048493,120]
[357018168,1743579953003,-305.471,0.00048634,84]
[357018169,1743579953023,-1000.0,0.00048767,120]
[357018170,1743579953049,-152.8,0.000488,45]
[357018171,1743579953075,-152.8,0.000488,45]
[357018172,1743579953100,-152.8,0.000488,45]
[357018173,1743579953126,-152.8,0.000488,45]
[357018174,1743579953148,-500.0,0.00048904,120]
[357018175,1743579953171,-500.0,0.00048904,120]
[357018176,1743579953192,-425.62981895,0.00048904,120]
[357018177,1743579953215,-500.0,0.00048904,120]
[357018178,1743579953236,-500.0,0.00048904,120]
[357018179,1743579953257,-500.0,0.00048904,120]
[357018180,1743579953278,-500.0,0.00048904,120]
[357018181,1743579953299,-500.0,0.00048904,120]
[357018182,1743579953320,-500.0,0.00048904,120]
[357018183,1743579953342,-500.0,0.00048904,120]
[357018184,1743579953363,-500.0,0.00048904,120]
[357018185,1743579953384,-500.0,0.00048904,120]
[357018186,1743579953406,-500.0,0.00048904,120]
[357018187,1743579953427,-500.0,0.00048904,120]
[357018188,1743579953448,-500.0,0.00048904,120]
[357018189,1743579953470,-500.0,0.00048904,120]
[357018190,1743579953492,-500.0,0.00048904,120]
[357018191,1743579953515,-500.0,0.00048904,120]
[357018192,1743579953538,-500.0,0.00048904,120]
[357018193,1743579953560,-247.60153353,0.00048904,120]
[357018194,1743579953582,-500.0,0.00048904,120]
[357018195,1743579953605,-500.0,0.00048904,120]
[357018196,1743579953628,-500.0,0.00048904,120]
[357018197,1743579953650,-500.0,0.00048904,120]
[357018198,1743579953673,-500.0,0.00048904,120]
[357018199,1743579953695,-500.0,0.00048904,120]
[357018200,1743579953718,-300.0,0.00048904,120]
[357018201,1743579953740,-1000.0,0.00049041,120]
[357018202,1743579953760,-270.17651209,0.0004921,30]
[357018203,1743579953780,-156.633322,0.00049212,30]
[357018204,1743579953803,-234.949986,0.00049212,30]
[357018205,1743579953827,-355.27038732,0.00049215,15]
[357018206,1743579953848,-500.0,0.00049315,120]
[357018207,1743579953868,-501.32147867,0.00049315,5]
[357018208,1743579953890,-500.0,0.00049315,2]
[357018209,1743579953911,-329.38039917,0.00049315,7]
[357018210,1743579953934,-549.61041174,0.00049315,120]
[357018211,1743579953955,-221.57508462,0.00049315,120]
[357018212,1743579953976,-514.02545038,0.00049315,120]
[357018213,1743579953997,-500.0,0.00049315,120]
[357018214,1743579954019,-500.0,0.00049315,120]
[357018215,1743579954041,-535.3950114,0.00049315,120]
[357018216,1743579954062,-500.0,0.00049315,120]
[357018217,1743579954207,-521.60434308,0.00049315,120]
[357018218,1743579954230,-553.02654805,0.00049315,120]
[357018219,1743579954250,-2000.0,0.00049315,30]
[357018220,1743579954271,-500.0,0.00049315,10]
[357018221,1743579954291,-500.0,0.00049315,120]
[357018222,1743579954311,-500.0,0.00049315,120]
[357018223,1743579954332,-500.0,0.00049315,120]
[357018224,1743579954354,-188.46211288,0.00049315,120]
[357018225,1743579954375,-500.0,0.00049315,120]
[357018226,1743579954395,-517.62743772,0.00049315,120]
[357018227,1743579954415,-500.0,0.00049315,2]
[357018228,1743579954436,-536.44190417,0.00049315,120]
[357018229,1743579954457,-500.97510302,0.00049315,120]
[357018230,1743579954483,-520.36768739,0.00049315,120]
[357018231,1743579954503,-530.10807108,0.00049315,120]
[357018232,1743579954524,-347.18264714,0.00049315,120]
[357018233,1743579954545,-153.4345946,0.00049315,120]
[357018234,1743580029114,-1365.0,0.00025404,2]
[357018235,1743580029138,-543.0,0.00025404,2]
[357018236,1743580029161,-909.0,0.00025404,2]
[357018237,1743580029182,-1434.0,0.00025404,2]